[Event "*** Titled Tuesday 3|2 Blitz"]
[Site "Chess.com"]
[Date "2014.12.30"]
[Round "1"]
[White "Philofive"]
[Black "Carolina-moon"]
[Result "1-0"]
[WhiteElo "2274"]
[BlackElo "1899"]
[TimeControl "180+2"]
[EndTime "11:03:30 PST"]
[Termination "Philofive won by resignation"]

1. d4 {[%clk 0:02:56]} 1... f5 {[%clk 0:02:58.5]} 2. Nc3 {[%clk 0:02:56.1]} 2...
Nf6 {[%clk 0:02:57.5]} 3. Bg5 {[%clk 0:02:55.9]} 3... d5 {[%clk 0:02:58.4]} 4.
Bxf6 {[%clk 0:02:55.5]} 4... exf6 {[%clk 0:02:59.5]} 5. e3 {[%clk 0:02:57.1]}
5... Be6 {[%clk 0:03:00.3]} 6. Qf3 {[%clk 0:02:58]} 6... Bb4 {[%clk 0:02:53.6]}
7. Bd3 {[%clk 0:02:46.6]} 7... Bxc3+ {[%clk 0:02:52.2]} 8. bxc3 {[%clk 0:02:47]}
8... Qd7 {[%clk 0:02:52.9]} 9. Ne2 {[%clk 0:02:43.1]} 9... c6 {[%clk 0:02:53.7]}
10. Rb1 {[%clk 0:02:34.6]} 10... g6 {[%clk 0:02:48.4]} 11. h4 {[%clk 0:02:33.9]}
11... h5 {[%clk 0:02:46.8]} 12. Nf4 {[%clk 0:02:25]} 12... Bf7 {[%clk
0:02:47.3]} 13. Rh3 {[%clk 0:02:06.5]} 13... Rg8 {[%clk 0:02:41.5]} 14. Rg3
{[%clk 0:02:01.7]} 14... Na6 {[%clk 0:02:37.2]} 15. Bxa6 {[%clk 0:02:01.9]}
15... bxa6 {[%clk 0:02:38.5]} 16. Nd3 {[%clk 0:02:02.6]} 16... Ke7 {[%clk
0:02:19.8]} 17. Qf4 {[%clk 0:02:02.2]} 17... Qd6 {[%clk 0:02:08.1]} 18. Rb7+
{[%clk 0:02:01.3]} 18... Ke6 {[%clk 0:02:06.4]} 19. Nc5+ {[%clk 0:02:01.8]} 1-0

[Event "*** Titled Tuesday 3|2 Blitz"]
[Site "Chess.com"]
[Date "2014.12.30"]
[Round "1"]
[White "WanderingPuppet"]
[Black "gmsakk"]
[Result "0-1"]
[WhiteElo "2059"]
[BlackElo "2368"]
[TimeControl "180+2"]
[EndTime "11:04:23 PST"]
[Termination "gmsakk won by resignation"]

1. e4 {[%clk 0:02:54.7]} 1... c5 {[%clk 0:02:58.6]} 2. Nf3 {[%clk 0:02:55]} 2...
e6 {[%clk 0:02:59.5]} 3. d4 {[%clk 0:02:55.9]} 3... cxd4 {[%clk 0:03:00.7]} 4.
Nxd4 {[%clk 0:02:57.8]} 4... a6 {[%clk 0:03:02.3]} 5. Bd3 {[%clk 0:02:58]} 5...
Qc7 {[%clk 0:03:02.1]} 6. Qe2 {[%clk 0:02:59.1]} 6... g6 {[%clk 0:03:02.7]} 7.
O-O {[%clk 0:02:59.5]} 7... Bg7 {[%clk 0:03:04.1]} 8. Nb3 {[%clk 0:02:58.5]}
8... d6 {[%clk 0:03:03.5]} 9. Nc3 {[%clk 0:02:58.5]} 9... Nf6 {[%clk 0:03:03.6]}
10. Bf4 {[%clk 0:02:58.2]} 10... Nbd7 {[%clk 0:03:03.8]} 11. h3 {[%clk
0:02:56.1]} 11... O-O {[%clk 0:03:04]} 12. Rad1 {[%clk 0:02:56.1]} 12... b5
{[%clk 0:03:05.3]} 13. Bh2 {[%clk 0:02:44.1]} 13... Ne5 {[%clk 0:02:58]} 14.
Rfe1 {[%clk 0:02:42.4]} 14... Bb7 {[%clk 0:02:55]} 15. f4 {[%clk 0:02:41.4]}
15... Nxd3 {[%clk 0:02:55.4]} 16. cxd3 {[%clk 0:02:38.7]} 16... b4 {[%clk
0:02:54.4]} 17. Nb1 {[%clk 0:02:37.4]} 17... a5 {[%clk 0:02:54.7]} 18. N1d2
{[%clk 0:02:36.3]} 18... a4 {[%clk 0:02:49.8]} 19. Nc1 {[%clk 0:02:37.2]} 19...
d5 {[%clk 0:02:41.3]} 20. f5 {[%clk 0:02:36.9]} 20... Qb6+ {[%clk 0:02:41.3]}
21. Kh1 {[%clk 0:02:36.6]} 21... dxe4 {[%clk 0:02:40.1]} 22. fxe6 {[%clk
0:02:33.8]} 22... Qxe6 {[%clk 0:02:40.3]} 23. Nxe4 {[%clk 0:02:30]} 23... Nxe4
{[%clk 0:02:39.4]} 24. dxe4 {[%clk 0:02:31.9]} 24... Rfe8 {[%clk 0:02:34.4]} 25.
Nd3 {[%clk 0:02:21.2]} 25... Qxa2 {[%clk 0:02:32.8]} 26. Nxb4 {[%clk 0:02:17.8]}
26... Qxb2 {[%clk 0:02:33.7]} 27. Qb5 {[%clk 0:01:50.1]} 27... Bxe4 {[%clk
0:02:31.6]} 28. Rg1 {[%clk 0:01:46.8]} 28... a3 {[%clk 0:02:27.9]} 29. Qc4
{[%clk 0:01:36.5]} 29... a2 {[%clk 0:02:27.1]} 30. Nxa2 {[%clk 0:01:33.1]} 30...
Rxa2 {[%clk 0:02:27.5]} 0-1

[Event "*** Titled Tuesday 3|2 Blitz"]
[Site "Chess.com"]
[Date "2014.12.30"]
[Round "1"]
[White "Dr-Bassem"]
[Black "AlmirDzhumaev"]
[Result "1-0"]
[WhiteElo "2374"]
[BlackElo "2069"]
[TimeControl "180+2"]
[EndTime "11:04:38 PST"]
[Termination "Dr-Bassem won by resignation"]

1. e4 {[%clk 0:02:57.7]} 1... e5 {[%clk 0:02:55.2]} 2. Nf3 {[%clk 0:02:58.1]}
2... Nc6 {[%clk 0:02:56.6]} 3. Bb5 {[%clk 0:02:58.7]} 3... a6 {[%clk 0:02:57.5]}
4. Ba4 {[%clk 0:02:59.7]} 4... Nf6 {[%clk 0:02:57.1]} 5. Qe2 {[%clk 0:02:59.8]}
5... b5 {[%clk 0:02:57.6]} 6. Bb3 {[%clk 0:03:00.8]} 6... Bc5 {[%clk 0:02:59.5]}
7. a4 {[%clk 0:03:01.9]} 7... b4 {[%clk 0:02:59.3]} 8. Bxf7+ {[%clk 0:03:00]}
8... Kf8 {[%clk 0:02:56.9]} 9. Bb3 {[%clk 0:02:55.6]} 9... d6 {[%clk 0:02:58.2]}
10. h3 {[%clk 0:02:45.3]} 10... a5 {[%clk 0:02:59]} 11. d3 {[%clk 0:02:45.2]}
11... h6 {[%clk 0:02:59.8]} 12. Be3 {[%clk 0:02:44.7]} 12... g5 {[%clk 0:02:57]}
13. Nbd2 {[%clk 0:02:43]} 13... Kg7 {[%clk 0:02:57.6]} 14. Bd5 {[%clk
0:02:23.1]} 14... Bd7 {[%clk 0:02:53.7]} 15. Bxc5 {[%clk 0:02:21.6]} 15... dxc5
{[%clk 0:02:42.3]} 16. Bxc6 {[%clk 0:02:22.2]} 16... Bxc6 {[%clk 0:02:44.2]} 17.
Nxe5 {[%clk 0:02:23.3]} 17... Be8 {[%clk 0:02:45.2]} 18. Ndc4 {[%clk 0:02:23.7]}
18... Qd4 {[%clk 0:02:45.2]} 19. Qe3 {[%clk 0:02:21.6]} 19... Rf8 {[%clk
0:02:43.3]} 20. Qxd4 {[%clk 0:02:21.3]} 20... cxd4 {[%clk 0:02:44.7]} 21. O-O
{[%clk 0:02:21.7]} 21... Nh5 {[%clk 0:02:44.9]} 22. g3 {[%clk 0:02:13.7]} 22...
c5 {[%clk 0:02:44.9]} 23. Kg2 {[%clk 0:02:14]} 23... Ra6 {[%clk 0:02:37.9]} 24.
b3 {[%clk 0:02:14.6]} 24... Bf7 {[%clk 0:02:22.9]} 25. Nxf7 {[%clk 0:02:14.7]}
25... Rxf7 {[%clk 0:02:24.1]} 26. Rae1 {[%clk 0:02:14.6]} 26... Kg6 {[%clk
0:02:24.9]} 27. e5 {[%clk 0:02:15.6]} 27... Ng7 {[%clk 0:02:22.8]} 28. Re4
{[%clk 0:01:57]} 28... Ne6 {[%clk 0:02:19.9]} 29. f4 {[%clk 0:01:57.4]} 29...
gxf4 {[%clk 0:02:20.6]} 30. gxf4 {[%clk 0:01:59.3]} 30... Kh5 {[%clk 0:02:20.2]}
31. f5 {[%clk 0:01:56.3]} 31... Ng5 {[%clk 0:02:20.3]} 32. Rg4 {[%clk
0:01:50.7]} 32... Ra8 {[%clk 0:02:20.4]} 33. Kg3 {[%clk 0:01:51.2]} 1-0

[Event "*** Titled Tuesday 3|2 Blitz"]
[Site "Chess.com"]
[Date "2014.12.30"]
[Round "1"]
[White "A-Fier"]
[Black "ItalianMachine"]
[Result "1-0"]
[WhiteElo "2537"]
[BlackElo "2164"]
[TimeControl "180+2"]
[EndTime "11:06:04 PST"]
[Termination "A-Fier won by resignation"]

1. e4 {[%clk 0:02:57.9]} 1... Nf6 {[%clk 0:02:55.6]} 2. e5 {[%clk 0:02:58.6]}
2... Nd5 {[%clk 0:02:56.9]} 3. d4 {[%clk 0:03:00.5]} 3... d6 {[%clk 0:02:58.4]}
4. c4 {[%clk 0:03:02.4]} 4... Nb6 {[%clk 0:02:59.4]} 5. f4 {[%clk 0:03:04.3]}
5... dxe5 {[%clk 0:02:58.2]} 6. fxe5 {[%clk 0:03:06.2]} 6... g6 {[%clk
0:02:59.7]} 7. Be3 {[%clk 0:03:05.4]} 7... Bg7 {[%clk 0:03:00.7]} 8. Nc3 {[%clk
0:03:07]} 8... c5 {[%clk 0:02:58.5]} 9. dxc5 {[%clk 0:03:07.3]} 9... N6d7 {[%clk
0:02:59.4]} 10. e6 {[%clk 0:03:07.3]} 10... fxe6 {[%clk 0:03:00.9]} 11. Nf3
{[%clk 0:03:07.5]} 11... O-O {[%clk 0:03:01.6]} 12. Be2 {[%clk 0:03:08.7]} 12...
Na6 {[%clk 0:03:02.2]} 13. Ne4 {[%clk 0:03:07.6]} 13... Qc7 {[%clk 0:02:58.9]}
14. O-O {[%clk 0:02:56.8]} 14... Ndxc5 {[%clk 0:02:54.5]} 15. Nc3 {[%clk
0:02:57.8]} 15... b6 {[%clk 0:02:44.7]} 16. Qc2 {[%clk 0:02:50]} 16... Bb7
{[%clk 0:02:44.3]} 17. Rae1 {[%clk 0:02:50.5]} 17... Rad8 {[%clk 0:02:41.3]} 18.
a3 {[%clk 0:02:51.6]} 18... e5 {[%clk 0:02:35.5]} 19. b4 {[%clk 0:02:47.9]}
19... Ne6 {[%clk 0:02:35.7]} 20. Nb5 {[%clk 0:02:49]} 20... Qb8 {[%clk
0:02:34.3]} 21. Qa2 {[%clk 0:02:45.3]} 21... Nd4 {[%clk 0:02:16.3]} 22. Bxd4
{[%clk 0:02:42.2]} 22... exd4 {[%clk 0:02:17]} 23. Bd3 {[%clk 0:02:34.9]} 23...
Bxf3 {[%clk 0:02:14.3]} 24. gxf3 {[%clk 0:02:35.2]} 24... Kh8 {[%clk 0:02:15.3]}
25. Rxe7 {[%clk 0:02:33.6]} 25... Qf4 {[%clk 0:02:10.8]} 26. Qe2 {[%clk
0:02:28.7]} 26... Nb8 {[%clk 0:02:01.8]} 27. Re4 {[%clk 0:02:26.3]} 27... Qg5+
{[%clk 0:01:52.7]} 28. Kh1 {[%clk 0:02:27.4]} 28... a6 {[%clk 0:01:52.9]} 29.
Nc7 {[%clk 0:02:28]} 29... Nc6 {[%clk 0:01:02.3]} 30. Ne6 {[%clk 0:02:27.5]}
30... Qh5 {[%clk 0:01:02.3]} 31. Nxf8 {[%clk 0:02:26.4]} 31... Rxf8 {[%clk
0:01:03.7]} 32. f4 {[%clk 0:02:26.8]} 32... Qxe2 {[%clk 0:00:54.1]} 33. Rxe2
{[%clk 0:02:28.7]} 33... Bh6 {[%clk 0:00:52.5]} 34. Re6 {[%clk 0:02:29.1]} 34...
Rc8 {[%clk 0:00:44]} 35. f5 {[%clk 0:02:26.6]} 35... a5 {[%clk 0:00:31.9]} 36.
fxg6 {[%clk 0:02:26.5]} 36... hxg6 {[%clk 0:00:29.4]} 37. Rxg6 {[%clk
0:02:26.3]} 37... Be3 {[%clk 0:00:30.3]} 38. Rf3 {[%clk 0:02:25.9]} 1-0

[Event "*** Titled Tuesday 3|2 Blitz"]
[Site "Chess.com"]
[Date "2014.12.30"]
[Round "1"]
[White "PauloCesarCosta"]
[Black "rhungaski"]
[Result "0-1"]
[WhiteElo "2098"]
[BlackElo "2396"]
[TimeControl "180+2"]
[EndTime "11:06:59 PST"]
[Termination "rhungaski won on time"]

1. Nf3 {[%clk 0:02:56.7]} 1... Nf6 {[%clk 0:02:57.4]} 2. c4 {[%clk 0:02:56.7]}
2... e6 {[%clk 0:02:56.4]} 3. d4 {[%clk 0:02:56.7]} 3... Bb4+ {[%clk 0:02:56.4]}
4. Bd2 {[%clk 0:02:56]} 4... a5 {[%clk 0:02:56.1]} 5. a3 {[%clk 0:02:55.6]} 5...
Bxd2+ {[%clk 0:02:56.6]} 6. Qxd2 {[%clk 0:02:54]} 6... a4 {[%clk 0:02:56.7]} 7.
Nc3 {[%clk 0:02:53.2]} 7... d6 {[%clk 0:02:54.7]} 8. g3 {[%clk 0:02:53.4]} 8...
O-O {[%clk 0:02:55.2]} 9. Bg2 {[%clk 0:02:54.4]} 9... Nbd7 {[%clk 0:02:56.7]}
10. O-O {[%clk 0:02:54.5]} 10... Qe7 {[%clk 0:02:56.5]} 11. Rad1 {[%clk
0:02:48]} 11... Ra6 {[%clk 0:02:47.5]} 12. Rfe1 {[%clk 0:02:26.2]} 12... Re8
{[%clk 0:02:41.8]} 13. e4 {[%clk 0:02:24.5]} 13... e5 {[%clk 0:02:43.2]} 14. Nd5
{[%clk 0:02:07.7]} 14... Qd8 {[%clk 0:02:37.9]} 15. dxe5 {[%clk 0:02:02.4]}
15... dxe5 {[%clk 0:02:38.5]} 16. Qc2 {[%clk 0:01:46.5]} 16... Nc5 {[%clk
0:02:33.4]} 17. Nb4 {[%clk 0:01:36.6]} 17... Rd6 {[%clk 0:02:34.2]} 18. Rxd6
{[%clk 0:01:31.6]} 18... Qxd6 {[%clk 0:02:34.8]} 19. Nd5 {[%clk 0:01:15.7]}
19... c6 {[%clk 0:02:25.6]} 20. Nxf6+ {[%clk 0:01:12.4]} 20... Qxf6 {[%clk
0:02:27.5]} 21. Nd2 {[%clk 0:00:58.1]} 21... Rd8 {[%clk 0:02:23.5]} 22. b4
{[%clk 0:00:55]} 22... axb3 {[%clk 0:02:25.4]} 23. Nxb3 {[%clk 0:00:55.1]} 23...
Qe7 {[%clk 0:02:23.1]} 24. Nxc5 {[%clk 0:00:52.4]} 24... Qxc5 {[%clk 0:02:25]}
25. a4 {[%clk 0:00:47.4]} 25... h5 {[%clk 0:02:19.5]} 26. h4 {[%clk 0:00:44.2]}
26... Rd4 {[%clk 0:02:20]} 27. Rc1 {[%clk 0:00:41]} 27... Be6 {[%clk 0:02:20.2]}
28. Bf1 {[%clk 0:00:34.4]} 28... g6 {[%clk 0:02:20.6]} 29. Kg2 {[%clk
0:00:24.7]} 29... b6 {[%clk 0:02:17.3]} 30. Bd3 {[%clk 0:00:17.3]} 30... Qd6
{[%clk 0:02:15.1]} 31. Bf1 {[%clk 0:00:12.8]} 31... Qb4 {[%clk 0:02:08.9]} 32.
c5 {[%clk 0:00:08.7]} 32... Rd2 {[%clk 0:02:07.2]} 33. Qc3 {[%clk 0:00:07.2]}
33... Qxe4+ {[%clk 0:01:49.8]} 34. Qf3 {[%clk 0:00:06.1]} 34... Bh3+ {[%clk
0:01:47.3]} 0-1

[Event "*** Titled Tuesday 3|2 Blitz"]
[Site "Chess.com"]
[Date "2014.12.30"]
[Round "1"]
[White "AUSSIE_PINOY"]
[Black "MattyDPerrine"]
[Result "1-0"]
[WhiteElo "2305"]
[BlackElo "1984"]
[TimeControl "180+2"]
[EndTime "11:07:02 PST"]
[Termination "AUSSIE_PINOY won by resignation"]

1. d4 {[%clk 0:02:53.7]} 1... Nf6 {[%clk 0:02:55.6]} 2. Nf3 {[%clk 0:02:53.6]}
2... c5 {[%clk 0:02:55.4]} 3. d5 {[%clk 0:02:54.3]} 3... b5 {[%clk 0:02:53.4]}
4. a4 {[%clk 0:02:53.7]} 4... Bb7 {[%clk 0:02:53.7]} 5. c4 {[%clk 0:01:49]} 5...
bxc4 {[%clk 0:02:08.2]} 6. Nc3 {[%clk 0:01:49.2]} 6... Qa5 {[%clk 0:01:58.2]} 7.
Bd2 {[%clk 0:01:44.3]} 7... d6 {[%clk 0:01:57.2]} 8. e4 {[%clk 0:01:43.5]} 8...
Ba6 {[%clk 0:01:54.8]} 9. e5 {[%clk 0:01:19.7]} 9... dxe5 {[%clk 0:01:00.1]} 10.
Nxe5 {[%clk 0:01:16.2]} 10... g6 {[%clk 0:00:54.1]} 11. d6 {[%clk 0:00:59.8]}
11... Qb6 {[%clk 0:00:39.8]} 12. a5 {[%clk 0:00:46.6]} 12... Qb7 {[%clk
0:00:22.2]} 13. Be2 {[%clk 0:00:45.4]} 13... exd6 {[%clk 0:00:18.2]} 14. Qa4+
{[%clk 0:00:40.3]} 14... Kd8 {[%clk 0:00:17]} 15. Bf3 {[%clk 0:00:40.9]} 15...
Qe7 {[%clk 0:00:18.1]} 16. O-O {[%clk 0:00:40.2]} 16... dxe5 {[%clk 0:00:17.2]}
17. Bxa8 {[%clk 0:00:40.3]} 17... Nbd7 {[%clk 0:00:18]} 18. Qc6 {[%clk
0:00:40.1]} 18... Qd6 {[%clk 0:00:19]} 19. Qf3 {[%clk 0:00:39.3]} 19... Bg7
{[%clk 0:00:14.6]} 20. Bg5 {[%clk 0:00:40.3]} 20... Kc8 {[%clk 0:00:14.4]} 21.
Rfd1 {[%clk 0:00:41.2]} 21... Qc7 {[%clk 0:00:14.9]} 22. Nd5 {[%clk 0:00:40.3]}
22... Nxd5 {[%clk 0:00:16]} 23. Qxd5 {[%clk 0:00:40.5]} 23... f5 {[%clk
0:00:16.2]} 24. Bc6 {[%clk 0:00:39.5]} 24... Rd8 {[%clk 0:00:14.8]} 25. Bxd8
{[%clk 0:00:39.4]} 1-0

[Event "*** Titled Tuesday 3|2 Blitz"]
[Site "Chess.com"]
[Date "2014.12.30"]
[Round "1"]
[White "playerzr"]
[Black "RitvarsReimanis"]
[Result "0-1"]
[WhiteElo "1908"]
[BlackElo "2281"]
[TimeControl "180+2"]
[EndTime "11:07:06 PST"]
[Termination "RitvarsReimanis won by resignation"]

1. d4 {[%clk 0:02:58]} 1... d5 {[%clk 0:01:13.2]} 2. c4 {[%clk 0:02:20.3]} 2...
e6 {[%clk 0:01:14]} 3. Nf3 {[%clk 0:02:20.6]} 3... c6 {[%clk 0:01:15.3]} 4. Qc2
{[%clk 0:02:19.6]} 4... f5 {[%clk 0:01:16.3]} 5. g3 {[%clk 0:02:19]} 5... Nf6
{[%clk 0:01:17.4]} 6. Bg2 {[%clk 0:02:20.1]} 6... Bd6 {[%clk 0:01:18.9]} 7. O-O
{[%clk 0:02:20.8]} 7... O-O {[%clk 0:01:19.4]} 8. b3 {[%clk 0:02:21.8]} 8... Qe7
{[%clk 0:01:20.1]} 9. a4 {[%clk 0:02:21.6]} 9... Ne4 {[%clk 0:01:21.5]} 10. Ba3
{[%clk 0:02:21.6]} 10... Nd7 {[%clk 0:01:23.1]} 11. Bxd6 {[%clk 0:02:21]} 11...
Nxd6 {[%clk 0:01:25]} 12. Nbd2 {[%clk 0:02:20.5]} 12... a5 {[%clk 0:01:26]} 13.
Ne1 {[%clk 0:02:09.4]} 13... Qf6 {[%clk 0:01:26.2]} 14. e3 {[%clk 0:02:07.6]}
14... Qh6 {[%clk 0:01:26]} 15. Nd3 {[%clk 0:02:03.4]} 15... Nf6 {[%clk
0:01:26.8]} 16. Ne5 {[%clk 0:02:02.4]} 16... Nf7 {[%clk 0:01:26.8]} 17. f3
{[%clk 0:01:56.7]} 17... Nxe5 {[%clk 0:01:23.8]} 18. dxe5 {[%clk 0:01:56.5]}
18... Qxe3+ {[%clk 0:01:25]} 19. Kh1 {[%clk 0:01:57.5]} 19... Qxe5 {[%clk
0:01:26.6]} 20. Rae1 {[%clk 0:01:56.5]} 20... Qd6 {[%clk 0:01:27.4]} 21. c5
{[%clk 0:01:50.8]} 21... Qc7 {[%clk 0:01:27.1]} 22. Rf2 {[%clk 0:01:49.6]} 22...
e5 {[%clk 0:01:27.1]} 23. Rfe2 {[%clk 0:01:49.7]} 23... e4 {[%clk 0:01:28.2]}
24. fxe4 {[%clk 0:01:47.4]} 24... fxe4 {[%clk 0:01:30.1]} 25. Nf1 {[%clk
0:01:47.4]} 25... Bf5 {[%clk 0:01:28.2]} 26. Ne3 {[%clk 0:01:47.9]} 26... Bg6
{[%clk 0:01:29.3]} 27. Qc3 {[%clk 0:01:48.2]} 27... Nd7 {[%clk 0:01:27.9]} 28.
Nc2 {[%clk 0:01:46.2]} 28... Qe5 {[%clk 0:01:27.6]} 29. Nd4 {[%clk 0:01:45.7]}
29... Nf6 {[%clk 0:01:24.7]} 30. Bh3 {[%clk 0:01:40.4]} 30... Qh5 {[%clk
0:01:22.2]} 31. Be6+ {[%clk 0:01:35.2]} 31... Kh8 {[%clk 0:01:22.7]} 32. Rg2
{[%clk 0:01:31]} 32... e3 {[%clk 0:01:19.9]} 33. g4 {[%clk 0:01:25.3]} 33... Qe5
{[%clk 0:01:18.1]} 34. Bf5 {[%clk 0:01:23.7]} 34... Bxf5 {[%clk 0:01:13]} 35.
gxf5 {[%clk 0:01:24.5]} 35... Rae8 {[%clk 0:01:10.7]} 36. Reg1 {[%clk
0:01:22.2]} 36... Ne4 {[%clk 0:01:06.4]} 37. Qe1 {[%clk 0:01:21.2]} 37... Nf2+
{[%clk 0:01:05.1]} 38. Rxf2 {[%clk 0:01:19]} 38... exf2 {[%clk 0:01:03.5]} 39.
Qxf2 {[%clk 0:01:20.5]} 39... Qe4+ {[%clk 0:01:04.2]} 40. Rg2 {[%clk 0:01:21.7]}
40... Rf6 {[%clk 0:00:58.8]} 41. h3 {[%clk 0:01:20.8]} 41... Qe1+ {[%clk
0:00:59.5]} 42. Kh2 {[%clk 0:01:21.4]} 42... Qxf2 {[%clk 0:01:00.2]} 43. Rxf2
{[%clk 0:01:22.5]} 43... Re4 {[%clk 0:01:01.4]} 0-1

[Event "*** Titled Tuesday 3|2 Blitz"]
[Site "Chess.com"]
[Date "2014.12.30"]
[Round "1"]
[White "GM_Barcenilla"]
[Black "jasrom"]
[Result "1-0"]
[WhiteElo "2656"]
[BlackElo "2203"]
[TimeControl "180+2"]
[EndTime "11:07:19 PST"]
[Termination "GM_Barcenilla won on time"]

1. e4 {[%clk 0:02:58.8]} 1... e6 {[%clk 0:02:58.6]} 2. c4 {[%clk 0:02:58]} 2...
d5 {[%clk 0:02:58.9]} 3. cxd5 {[%clk 0:02:57.8]} 3... exd5 {[%clk 0:02:59.1]} 4.
e5 {[%clk 0:02:59.3]} 4... c5 {[%clk 0:02:59.1]} 5. f4 {[%clk 0:02:59.5]} 5...
Nc6 {[%clk 0:03:00.3]} 6. Nf3 {[%clk 0:03:00.3]} 6... Nh6 {[%clk 0:02:56.6]} 7.
Nc3 {[%clk 0:02:56]} 7... Be7 {[%clk 0:02:42.6]} 8. d3 {[%clk 0:02:56.7]} 8...
Be6 {[%clk 0:02:20.1]} 9. g3 {[%clk 0:02:54.4]} 9... Qd7 {[%clk 0:01:40.5]} 10.
Bg2 {[%clk 0:02:54.4]} 10... Rd8 {[%clk 0:01:41.5]} 11. O-O {[%clk 0:02:53.8]}
11... Bh3 {[%clk 0:01:41.6]} 12. d4 {[%clk 0:02:30.3]} 12... O-O {[%clk
0:01:04.9]} 13. Nxd5 {[%clk 0:02:29.1]} 13... Bxg2 {[%clk 0:00:59.1]} 14. Nxe7+
{[%clk 0:02:28.8]} 14... Qxe7 {[%clk 0:00:59.9]} 15. Kxg2 {[%clk 0:02:28.7]}
15... Nxd4 {[%clk 0:01:00.5]} 16. Nxd4 {[%clk 0:02:23]} 16... Rxd4 {[%clk
0:01:01.5]} 17. Qe2 {[%clk 0:02:24.2]} 17... Nf5 {[%clk 0:00:33.1]} 18. g4
{[%clk 0:02:24.6]} 18... Nh4+ {[%clk 0:00:28.3]} 19. Kg1 {[%clk 0:02:25.7]}
19... Rfd8 {[%clk 0:00:14.8]} 20. Be3 {[%clk 0:02:22.9]} 20... Rd3 {[%clk
0:00:15]} 21. Rad1 {[%clk 0:02:15.9]} 21... c4 {[%clk 0:00:12.9]} 22. Rc1 {[%clk
0:01:41.8]} 22... b5 {[%clk 0:00:11.1]} 23. Qf2 {[%clk 0:01:38.1]} 23... Ng6
{[%clk 0:00:06.8]} 24. Rce1 {[%clk 0:01:29.3]} 24... Qd7 {[%clk 0:00:04.2]} 25.
h3 {[%clk 0:01:30.3]} 25... Qd5 {[%clk 0:00:04.6]} 26. Qg2 {[%clk 0:01:16.9]}
26... Qd7 {[%clk 0:00:03.6]} 27. Re2 {[%clk 0:01:11.8]} 27... Nh4 {[%clk
0:00:04.1]} 28. Qf2 {[%clk 0:01:12.6]} 28... Qe7 {[%clk 0:00:04.9]} 29. f5
{[%clk 0:01:06.2]} 29... Qxe5 {[%clk 0:00:02]} 30. Qxh4 {[%clk 0:01:06.5]} 1-0

[Event "*** Titled Tuesday 3|2 Blitz"]
[Site "Chess.com"]
[Date "2014.12.30"]
[Round "1"]
[White "bugsbunny444"]
[Black "SidArun"]
[Result "1-0"]
[WhiteElo "2233"]
[BlackElo "1828"]
[TimeControl "180+2"]
[EndTime "11:07:38 PST"]
[Termination "bugsbunny444 won by checkmate"]

1. Nf3 {[%clk 0:02:59]} 1... Nf6 {[%clk 0:02:57.2]} 2. c4 {[%clk 0:02:59.9]}
2... g6 {[%clk 0:02:58.5]} 3. b4 {[%clk 0:03:01]} 3... Bg7 {[%clk 0:02:59.8]} 4.
Bb2 {[%clk 0:03:02.4]} 4... a5 {[%clk 0:03:00.5]} 5. b5 {[%clk 0:03:03.2]} 5...
O-O {[%clk 0:03:01.2]} 6. g3 {[%clk 0:03:04.7]} 6... d5 {[%clk 0:03:02.2]} 7.
cxd5 {[%clk 0:03:05.6]} 7... Nxd5 {[%clk 0:03:02.4]} 8. Bxg7 {[%clk 0:03:06.8]}
8... Kxg7 {[%clk 0:03:03.6]} 9. Qb3 {[%clk 0:03:08.5]} 9... e6 {[%clk
0:02:54.8]} 10. Bg2 {[%clk 0:02:55.9]} 10... Qf6 {[%clk 0:02:52.1]} 11. d4
{[%clk 0:02:29.1]} 11... a4 {[%clk 0:02:40.5]} 12. Qb2 {[%clk 0:02:26.9]} 12...
c5 {[%clk 0:02:36.5]} 13. bxc6 {[%clk 0:02:03.9]} 13... Nxc6 {[%clk 0:02:34.4]}
14. O-O {[%clk 0:01:54.7]} 14... Ra6 {[%clk 0:02:34.6]} 15. Na3 {[%clk
0:01:39.9]} 15... Rb6 {[%clk 0:02:30.7]} 16. Qd2 {[%clk 0:01:38.1]} 16... Qe7
{[%clk 0:02:24.4]} 17. Nc4 {[%clk 0:01:35.3]} 17... Rb4 {[%clk 0:02:24.5]} 18.
Rfc1 {[%clk 0:01:29.8]} 18... f6 {[%clk 0:02:02.4]} 19. e4 {[%clk 0:01:10.9]}
19... Nb6 {[%clk 0:01:52.6]} 20. Nxb6 {[%clk 0:01:07.6]} 20... Rxb6 {[%clk
0:01:52.9]} 21. d5 {[%clk 0:01:07.1]} 21... exd5 {[%clk 0:01:53.9]} 22. exd5
{[%clk 0:01:08.5]} 22... Ne5 {[%clk 0:01:54]} 23. Nd4 {[%clk 0:01:01.8]} 23...
Bd7 {[%clk 0:01:45.1]} 24. Rc7 {[%clk 0:00:55.6]} 24... Rc8 {[%clk 0:01:38]} 25.
Rxc8 {[%clk 0:00:32]} 25... Bxc8 {[%clk 0:01:38.7]} 26. Rc1 {[%clk 0:00:33.3]}
26... Bd7 {[%clk 0:01:26.8]} 27. h3 {[%clk 0:00:34.7]} 27... Qd6 {[%clk
0:01:22.7]} 28. f4 {[%clk 0:00:20.9]} 28... Nf7 {[%clk 0:01:23]} 29. Kh2 {[%clk
0:00:21.9]} 29... a3 {[%clk 0:01:20.4]} 30. Rc2 {[%clk 0:00:21.2]} 30... Ba4
{[%clk 0:01:18.6]} 31. Ne6+ {[%clk 0:00:20.4]} 31... Kh6 {[%clk 0:01:12.3]} 32.
Rc4 {[%clk 0:00:16.4]} 32... f5 {[%clk 0:01:07.7]} 33. Rxa4 {[%clk 0:00:16.8]}
33... Rb2 {[%clk 0:01:08.4]} 34. Qd4 {[%clk 0:00:16.1]} 34... g5 {[%clk
0:00:51.2]} 35. Qg7+ {[%clk 0:00:16.9]} 35... Kh5 {[%clk 0:00:52.1]} 36. Qxh7+
{[%clk 0:00:17.5]} 36... Nh6 {[%clk 0:00:52.2]} 37. Ng7# {[%clk 0:00:18.9]} 1-0